[Event "Sautron op 16th"]
[Site "Sautron"]
[Date "2016.10.22"]
[Round "7.4"]
[White "Stany, George Anthony"]
[Black "Manea, Alexandru"]
[Result "1-0"]
[ECO "B83"]
[WhiteElo "2471"]
[BlackElo "2382"]
[Annotator "RR"]
[PlyCount "79"]
[EventDate "2016.10.22"]
[EventType "swiss"]
[EventRounds "9"]
[EventCountry "FRA"]
[SourceTitle "EXT 2019"]
[Source "ChessBase"]
[SourceDate "2018.10.10"]
[SourceVersion "1"]
[SourceVersionDate "2018.10.10"]
[SourceQuality "1"]
[TimeControl "40/5400+30:1800+30"]
[WhiteClock "0:33:17"]
[BlackClock "0:01:08"]

1. e4 {[%emt 0:00:00]} c5 {[%emt 0:06:40]} 2. Nf3 {[%emt 0:00:00]} e6 {[%emt 0:
00:09]} 3. d4 {[%emt 0:00:00]} cxd4 {[%emt 0:00:40]} 4. Nxd4 {[%emt 0:00:00]}
Nc6 {[%emt 0:00:08]} 5. Nc3 {[%emt 0:00:00]} Qc7 {[%emt 0:00:05]} 6. Be2 {
[%emt 0:00:03]} Nf6 {[%emt 0:00:08]} 7. O-O {[%emt 0:01:49]} Be7 {[%emt 0:00:
08]} 8. Be3 {[%emt 0:00:16]} O-O {[%emt 0:00:08]} 9. f4 {[%emt 0:00:23]} d6 {
[%emt 0:00:06]} 10. Ndb5 $5 {[%emt 0:00:18] Une ligne secondaire} (10. Kh1) (
10. Qe1) 10... Qb8 {[%emt 0:00:54]} 11. Qe1 {[%emt 0:00:09]} a6 {[%emt 0:05:43]
} 12. Nd4 {[%emt 0:00:10]} Nxd4 {[%emt 0:00:05]} (12... Bd7 13. Rd1 b5 14. a3
Nxd4 15. Bxd4 Bc6 16. Bf3 e5 17. Be3 a5 18. Nd5 Bxd5 19. exd5 e4 20. Be2 Rc8
21. c3 Qb7 22. Qd2 Bd8 23. g4 Nd7 24. g5 Bb6 25. Bg4 Rc4 26. Be2 Qa7 27. Kf2
Nc5 28. Bxc4 bxc4 29. Bxc5 Bxc5+ 30. Kg3 e3 31. Qg2 Qe7 32. Rde1 Rf8 33. Re2 f6
34. h4 g6 35. Qf3 fxg5 36. hxg5 Rf5 37. Rfe1 Qf7 38. Rxe3 Bxe3 39. Rxe3 Qxd5
40. Re8+ Kf7 41. Qe3 Qd3 42. Re7+ {Swiercz,D (2565)-Potkin,V (2669) Plovdiv
2012 1/2-1/2}) 13. Bxd4 {[%emt 0:00:04]} e5 {[%emt 0:00:05]} 14. Be3 {[%emt 0:
08:12]} (14. fxe5 dxe5 15. Be3 Ng4) 14... b5 {[%emt 0:03:58]} 15. fxe5 {
[%emt 0:16:35]} dxe5 {[%emt 0:00:15]} 16. Qg3 {[%emt 0:00:21]} Kh8 {[%emt 0:00:
05]} 17. Bg5 {[%emt 0:02:13]} Ng8 {[%emt 0:23:23] Un coup passif et les Noirs
n'ont pas terminé le développement de l'aile-dame} 18. Nd5 {[%emt 0:26:21]
[%csl Gd5]} Bxg5 {[%emt 0:03:13]} 19. Qxg5 $14 {[%emt 0:00:04]} Be6 {[%emt 0:
00:12]} 20. Rad1 $32 {[%emt 0:00:11][%csl Ra8,Rb8][%cal Gd1d3,Gd3h3]} Qa7+ $146
{[%emt 0:03:43]} (20... Rd8 21. Kh1 f6 22. Qh4 Qb7 23. b3 f5 24. Nf4 exf4 25.
Rxd8 Rxd8 26. Qxd8 Qxe4 27. Bd3 Qe5 28. Qg5 f3 29. Rxf3 Qa1+ 30. Rf1 Qxa2 31.
Bxf5 h6 32. Qg6 Bxf5 33. Qxf5 Qb2 34. h3 Qd4 35. Qd3 Qc5 36. Qf5 Qd4 37. Rf3
Qd1+ 38. Kh2 Qd6+ 39. Qf4 Qc6 40. c4 Nf6 41. Rd3 Qe6 42. c5 Kh7 43. b4 g5 44.
Rd6 {1-0 (44) Nolte,R (2420)-Rahman,Z (2558) Olongapo City 2010}) 21. Kh1 {
[%emt 0:01:17]} f6 {[%emt 0:00:06]} 22. Qh4 {[%emt 0:12:48]} Ne7 {[%emt 0:01:
01]} 23. Bg4 $1 {[%emt 0:00:22]} Bxg4 {[%emt 0:03:53]} 24. Qxg4 {[%emt 0:00:06]
} Rad8 {[%emt 0:00:28]} 25. Qe6 {[%emt 0:00:49]} Nxd5 {[%emt 0:00:53]} 26. Rxd5
{[%emt 0:00:11]} Rxd5 {[%emt 0:00:54]} 27. exd5 {[%emt 0:02:27][%csl Gd5]} Qc5
{[%emt 0:11:41]} 28. c3 {[%emt 0:06:38]} Qc4 {[%emt 0:01:04][%cal Gc4e6]} (
28... b4 29. cxb4 Qxb4 30. d6 Rd8 31. Rd1 $36) 29. Kg1 {[%emt 0:01:18]} Qc5+ {
[%emt 0:01:17]} 30. Kh1 {[%emt 0:00:40]} Qc4 {[%emt 0:00:44]} 31. Rf3 {[%emt 0:
11:28]} Qxa2 {[%emt 0:21:02][%csl Rh1]} 32. h3 {[%emt 0:00:18][%cal Ge6e7]} Rg8
$6 {[%emt 0:00:15]} 33. Qd7 {[%emt 0:04:01]} Qxb2 {[%emt 0:03:16]} 34. Qe7 {
[%emt 0:01:27]} Qc1+ {[%emt 0:02:31]} 35. Kh2 {[%emt 0:00:04]} b4 $2 {[%emt 0:
06:32]} 36. d6 {[%emt 0:04:07]} e4 {[%emt 0:01:51]} 37. Rxf6 $1 {[%emt 0:00:48]
} h6 {[%emt 0:00:38]} 38. Rf8 {[%emt 0:00:30]} Qg5 {[%emt 0:00:55]} 39. Rxg8+ {
[%emt 0:00:10]} Kxg8 {[%emt 0:00:00]} 40. Qxg5 {[%emt 0:00:00]} 1-0